[Event "1000GM Memorial Day NY IM-C 2023"]
[Site "New York"]
[Date "2023.05.27"]
[Round "3.4"]
[White "Paragua, Mark"]
[Black "Mou, Iris"]
[Result "1-0"]
[ECO "A46"]
[WhiteElo "2442"]
[BlackElo "2002"]
[Annotator "TA"]
[PlyCount "57"]
[EventDate "2023.05.23"]
[EventType "tourn"]
[EventCountry "USA"]
[SourceTitle "playchess.com"]
[Source "ChessBase"]
[SourceQuality "1"]
[TimeControl "5400+30"]

{[%evp 14,57,13,0,8,0,0,4,30,16,41,27,109,119,131,127,143,119,173,189,151,151,154,124,146,104,213,199,951,948,925,897,828,806,1283,1267,1196,1161,1056,1085,859,568,554,546,533,530]} 1. d4 {[%emt 0:00:05]} Nf6 {[%emt 0:00:09]} 2. Nf3 {[%emt 0:00:15]} e6 {[%emt 0:00:13]} 3. g3 {[%emt 0:00:23]} b5 {[%emt 0:03:41][%cal Bb7b5,Bb5b4][%mdl 32]} 4. a4 {[%emt 0:00:41]} b4 {[%emt 0:01:06]} 5. Bg2 {[%emt 0:01:08]} d5 {[%emt 0:00:10]} 6. O-O {[%emt 0:00:44]} Be7 {[%emt 0:01:14]} 7. c4 {[%emt 0:00:25]} bxc3 {[%emt 0:00:11]} 8. Nxc3 {[%emt 0:00:13]} O-O {[%emt 0:00:54] A46: 1 d4 Nf6 2 Nf3 e6: Torre, London and Colle Systems.} 9. Bf4 {[%emt 0:01:00]} a5 {[%emt 0:00:24]} 10. Rc1 {[%emt 0:00:59] [#]} Bd7 $146 {[%emt 0:08:56] The position is equal.} ({Predecessor:} 10... c6 11. e4 Nxe4 12. Nxe4 dxe4 13. Ne5 f6 14. Nxc6 Nxc6 15. Bxe4 Nxd4 16. Bxa8 e5 17. Be3 Ba6 18. Bxd4 Bxf1 19. Be3 Qxa8 20. Qxf1 Bb4 21. Qc4+ Kh8 {½-½ Gledura,B (2626)-Stremavicius,T (2519) Pan American Intercollegiate-chT 2019 (4.3)}) 11. Ne5 {[%emt 0:02:07]} Na6 {[%emt 0:03:54]} 12. Nb5 {[%emt 0:09:46][%cal Ob5c7]} Ne8 {[%emt 0:13:28]} (12... Be8 $11) 13. e4 $16 {[%emt 0:01:18] White is much more active.} Bxb5 {[%emt 0:06:23]} 14. axb5 {[%emt 0:00:08]} Nb4 {[%emt 0:00:21]} 15. exd5 {[%emt 0:05:51]} Nxd5 {[%emt 0:02:55]} (15... exd5 $16 16. Nc6 Nxc6 17. Rxc6 Rb8) 16. Nc6 $36 {[%emt 0:04:08][%mdl 2048] White is on the roll.} Qd7 {[%emt 0:00:36]} 17. Bxd5 {[%emt 0:02:22]} exd5 {[%emt 0:00:18]} 18. Qb3 {[%emt 0:00:24][%cal Ob3d5] aiming for Qxd5!} Bd6 {[%emt 0:11:45]} 19. Be5 {[%emt 0:05:12]} Qe6 {[%emt 0:06:06]} (19... f6 $16 {was called for.}) 20. Rfe1 {[%emt 0:01:39] Hoping for b6.} f6 $2 {[%emt 0:08:33] [#]} (20... a4 21. Qc3 Nf6) 21. Bxd6 {[%emt 0:07:44] White is clearly winning.} Qxd6 {[%emt 0:00:13]} 22. Rc5 {[%emt 0:00:33]} Rf7 {[%emt 0:12:15]} 23. Rxd5 {[%emt 0:00:15]} Qf8 {[%emt 0:01:39] Black is weak on the light squares} 24. Rd8 {[%emt 0:00:51]} Rxd8 {[%emt 0:02:03]} 25. Nxd8 {[%emt 0:00:05][%mdl 64] [#] Pin} Nd6 {[%emt 0:00:20]} 26. Nxf7 {[%emt 0:00:20]} Qxf7 {[%emt 0:00:20]} 27. Qxf7+ {[%emt 0:02:57]} Kxf7 {[%emt 0:00:08]} 28. Rc1 {[%emt 0:00:04]} Nxb5 {[%emt 0:01:06]} 29. d5 {[%emt 0:00:11] Weighted Error Value: White=0.34/Black=0.33} 1-0

[Event "1000GM Memorial Day NY IM-C 2023"]
[Site "New York"]
[Date "2023.05.27"]
[Round "3.5"]
[White "Poliannikov, Danila"]
[Black "Nemeth, Miklos"]
[Result "1-0"]
[ECO "C92"]
[WhiteElo "2278"]
[BlackElo "2452"]
[Annotator "TA"]
[PlyCount "131"]
[EventDate "2023.05.23"]
[EventType "tourn"]
[EventCountry "USA"]
[SourceTitle "playchess.com"]
[Source "ChessBase"]
[SourceQuality "1"]
[TimeControl "5400+30"]

{[%evp 26,131,20,0,17,1,20,0,0,0,0,0,0,0,14,0,9,0,19,12,12,7,12,0,0,-3,-2,-41,-12,-18,-15,-20,-12,-58,0,-54,0,0,0,0,-7,0,11,0,5,0,34,34,32,25,0,0,81,58,137,113,114,114,180,0,156,147,144,151,128,144,128,147,148,100,75,0,40,54,147,156,123,35,45,106,292,261,1980,1919,29975,29976,29975,29975,29977,29978,29971,1388,1403,1331,1395,1396,1380,1346,1296,1154,2143,2024,1914,1781,29987,29988,29988,29989]} 1. e4 {[%emt 0:00:03]} e5 {[%emt 0:00:06]} 2. Nf3 {[%emt 0:00:03]} Nc6 {[%emt 0:00:04]} 3. Bb5 {[%emt 0:00:04]} a6 {[%emt 0:00:06]} 4. Ba4 {[%emt 0:00:04]} Nf6 {[%emt 0:00:05]} 5. O-O {[%emt 0:00:05]} Be7 {[%emt 0:00:05]} 6. Re1 {[%emt 0:00:05]} b5 {[%emt 0:00:05]} 7. Bb3 {[%emt 0:00:03]} d6 {[%emt 0:00:07]} 8. c3 {[%emt 0:00:03]} O-O {[%emt 0:00:06]} 9. h3 {[%emt 0:00:03]} Bb7 {[%emt 0:00:13]} 10. d4 {[%emt 0:00:35]} Re8 {[%emt 0:00:05]} 11. Ng5 {[%emt 0:00:30]} Rf8 {[%emt 0:00:06]} 12. Nf3 {[%emt 0:00:04]} Re8 {[%emt 0:00:33]} 13. Nbd2 {[%emt 0:00:30]} Bf8 {[%emt 0:00:08] 13...Nb8 is more fashionable.} 14. a4 {[%emt 0:00:20]} Na5 {[%emt 0:00:53] C92: Closed Ruy Lopez: 9...Be6, Karpov and Flohr-Zaitsev Variations.} 15. Bc2 {[%emt 0:01:19]} b4 {[%emt 0:00:08]} 16. d5 {[%emt 0:06:24]} (16. cxb4 $5 Nc6 $8 17. d5 Nxb4 18. Nc4 $11) 16... bxc3 {[%emt 0:00:06] The position is equal.} 17. bxc3 {[%emt 0:00:11]} c6 {[%emt 0:00:06]} 18. c4 {[%emt 0:00:32]} Qc7 {[%emt 0:00:06]} 19. Ba3 {[%emt 1:29:02]} Reb8 {[%emt 0:02:32]} 20. Bd3 {[%emt 0:00:00]} Bc8 {[%emt 0:01:03]} 21. Qc2 {[%emt 0:00:00]} Nh5 {[%emt 0:05:43]} 22. Rec1 {[%emt 0:00:00]} Nf4 {[%emt 0:04:24]} 23. Bf1 {[%emt 0:00:00] [#]} c5 $146 {[%emt 0:10:26]} ({Predecessor:} 23... Bd7 24. Qc3 Rc8 25. Qe3 Qd8 26. c5 cxd5 27. cxd6 f6 28. exd5 Rxc1 29. Rxc1 Bxa4 30. g3 Nxd5 31. Qe4 Nb6 {1-0 Parligras,M (2574)-Bellia,F (2376) Rethymno op 2nd 2010 (8)}) 24. Kh2 {[%emt 0:00:00]} Bd7 {[%emt 0:01:17]} 25. Qd1 {[%emt 0:00:00]} Qc8 {[%emt 0:01:03]} 26. Rc3 {[%emt 0:00:00]} Qe8 {[%emt 0:01:34]} 27. Bc1 {[%emt 0:00:00]} Rb4 {[%emt 0:00:11]} 28. Rca3 {[%emt 0:00:00]} Rab8 {[%emt 0:03:00]} 29. Ne1 {[%emt 0:00:00]} (29. Qc2 $11 {deserves consideration.}) 29... f5 {[%emt 0:04:20]} (29... Qc8 $15) 30. g3 {[%emt 0:00:00]} (30. exf5 $11 Bxf5 31. g3) 30... Ng6 {[%emt 0:01:09]} (30... fxe4 $1 $15 31. gxf4 exf4) 31. Nc2 $11 {[%emt 0:00:00]} R4b7 {[%emt 0:02:53]} (31... Rxa4 $2 32. exf5 Nh8 33. Ne3 $18) 32. exf5 $1 {[%emt 0:00:00]} Bxf5 {[%emt 0:00:12]} 33. Ne3 {[%emt 0:00:00]} Bd7 {[%emt 0:00:12]} 34. Bd3 {[%emt 0:00:00]} Qf7 {[%emt 0:04:58]} 35. Kg2 {[%emt 0:00:00]} Be7 {[%emt 0:01:02]} 36. Bc2 {[%emt 0:00:00]} (36. Qf3 Qxf3+ 37. Nxf3 Bf6 $15) 36... Rb4 {[%emt 0:01:48]} 37. Qe2 {[%emt 0:00:00]} Bg5 {[%emt 0:03:02]} 38. Rc3 {[%emt 0:00:00]} Bxe3 {[%emt 0:17:50]} (38... Ne7 $11) 39. Rxe3 $16 {[%emt 0:00:00]} Ne7 {[%emt 0:00:37]} (39... Qf6 $14) 40. Rf3 {[%emt 0:00:00]} Qe8 {[%emt 0:00:16]} (40... Qh5 $2 41. Rf8+ Rxf8 42. Qxh5 $18) 41. Ne4 {[%emt 0:00:00]} Nb3 {[%emt 0:38:20] [#]} (41... Rxc4 $2 42. Nxd6 Bxh3+ 43. Kxh3 $18) (41... Nxc4 $16 {was necessary.} 42. Rc3 Nb6) 42. Ng5 $2 {[%emt 0:07:00]} Ng6 $2 {[%emt 0:00:00] [#]} (42... Nxa1 $2 43. Bxh7+ Kh8 44. Qe4 $18) (42... Bxh3+ $2 43. Kxh3 g6 44. Bxb3 Rxb3 45. Ne4 Qc8+ 46. g4 $18) (42... h6 $11 43. Rxb3 Rxb3 44. Bxb3 Rxb3) 43. Rf7 $1 {[%emt 0:03:52]} Qxf7 {[%emt 0:00:00]} (43... Nxa1 $2 44. Qh5 Qxf7 45. Qxh7+ Kf8 46. Nxf7 Nxc2 47. Nxd6 Ne1+ 48. Kf1 $18) (43... Bxh3+ $2 44. Kxh3 Qxf7 45. Nxf7 $18) 44. Nxf7 {[%emt 0:00:03]} Kxf7 {[%emt 0:00:00]} 45. Bxb3 {[%emt 0:01:05]} Rxb3 {[%emt 0:00:00]} 46. h4 {[%emt 0:00:50]} Bf5 {[%emt 0:00:00]} 47. h5 {[%emt 0:00:18]} (47. Qh5 $142 Bd7 48. Ra3 (48. Qxh7 $2 {too greedy.} Rh8 $19)) 47... Ne7 {[%emt 0:00:00]} 48. Bg5 {[%emt 0:00:09]} (48. h6 $16) 48... Bd3 {[%emt 0:00:00]} 49. Qg4 {[%emt 0:00:14] Some like it hot} Bf5 {[%emt 0:00:00] Wards off Qe6+} (49... Nf5 $1 $14) 50. Qh4 $36 {[%emt 0:00:11][%mdl 2048] White is in control.} Ng8 {[%emt 0:00:00] [#]} 51. h6 {[%emt 0:00:40]} ({Better is} 51. f4 $1 $16 {[%cal Rf4e5]}) 51... g6 $1 $14 {[%emt 0:00:00]} 52. Re1 {[%emt 0:00:41]} ({White should play} 52. Kg1 $14) 52... R8b4 $2 {[%emt 0:00:00] [#] This move loses the game for Black.} (52... Rd3 $16) 53. Bd2 $1 $18 {[%emt 0:00:30]} Rxa4 $2 {[%emt 0:00:00]} (53... Rb8 54. Ba5 Nf6) 54. Qd8 {[%emt 0:00:08]} Rb7 {[%emt 0:00:00]} 55. Qxd6 {[%emt 0:00:39]} e4 {[%emt 0:00:00]} 56. g4 {[%emt 0:01:28][%mdl 64] Deflection} Bxg4 {[%emt 0:00:00]} 57. Rxe4 {[%emt 0:00:04]} Bf5 {[%emt 0:00:00]} 58. Rf4 {[%emt 0:00:46]} (58. Re5 $142 Ra7 59. Qxc5 Rd7 60. Qc6 Re7 61. Rxe7+ Nxe7 62. Qxa4 Ng8 63. Qa1) 58... Re7 {[%emt 0:00:00]} 59. Qxc5 {[%emt 0:00:12] Threatens to win with d6.} Ra2 {[%emt 0:00:00]} 60. d6 {[%emt 0:00:29]} Rxd2 {[%emt 0:00:00]} 61. dxe7 {[%emt 0:00:26]} Nxe7 {[%emt 0:00:00]} 62. Qe5 {[%emt 0:00:07] Strongly threatening Rf3.} Rd8 {[%emt 0:00:00]} 63. Qg7+ {[%emt 0:00:17]} Ke6 {[%emt 0:00:00]} 64. Rf3 {[%emt 0:00:51] Threatening mate with Re3+.} Be4 {[%emt 0:00:00]} 65. Qf6+ {[%emt 0:00:04][%mdl 64] Skewer} Kd7 {[%emt 0:00:00]} 66. Qd4+ {[%emt 0:00:07][%mdl 64] Skewer, Double Attack. An entertaining game by Poliannikov.   Weighted Error Value: White=0.17 (very precise) /Black=0.48} 1-0

[Event "1000GM Memorial Day NY IM-C 2023"]
[Site "New York"]
[Date "2023.05.27"]
[Round "4.1"]
[White "Sazci, Bilgen"]
[Black "Nemeth, Miklos"]
[Result "0-1"]
[ECO "C78"]
[WhiteElo "1827"]
[BlackElo "2452"]
[Annotator "TA"]
[PlyCount "68"]
[EventDate "2023.05.23"]
[EventType "tourn"]
[EventCountry "USA"]
[SourceTitle "playchess.com"]
[Source "ChessBase"]
[SourceQuality "1"]
[TimeControl "5400+30"]

{[%evp 14,68,0,0,8,0,30,0,5,0,13,16,14,0,27,7,16,0,17,0,0,0,6,0,0,0,5,5,18,11,18,10,10,-12,-11,-11,-6,-43,-31,-37,-26,-13,-18,-12,-14,-110,-109,-193,-174,-342,-341,-345,-343,-344,-342,-335,-327]} 1. e4 {[%emt 0:00:06]} e5 {[%emt 0:06:16]} 2. Nf3 {[%emt 0:00:09]} Nc6 {[%emt 0:00:04]} 3. Bb5 {[%emt 0:00:09]} a6 {[%emt 0:00:07]} 4. Ba4 {[%emt 0:00:07]} Nf6 {[%emt 0:00:32]} 5. O-O {[%emt 0:00:10]} b5 {[%emt 0:01:03]} 6. Bb3 {[%emt 0:00:07]} Bc5 {[%emt 0:00:07]} 7. d3 {[%emt 0:01:43]} d6 {[%emt 0:01:30]} 8. a4 {[%emt 0:01:57] outshines the older 8.c3.} Rb8 {[%emt 0:05:05] C78: Ruy Lopez: Archangelsk and Möller Defences.} 9. c3 {[%emt 0:04:04]} O-O {[%emt 0:02:58]} 10. Nbd2 {[%emt 0:03:34] is the legacy move (10.h3).} h6 {[%emt 0:00:46] The position is equal.} 11. h3 {[%emt 0:01:14]} Re8 {[%emt 0:04:03]} 12. Re1 {[%emt 0:01:32]} Bb6 {[%emt 0:00:28]} 13. Nf1 {[%emt 0:02:48]} Be6 {[%emt 0:03:25]} 14. Bc2 {[%emt 0:02:42]} d5 {[%emt 0:02:06] [#]} 15. exd5 $146 {[%emt 0:02:48]} ({Predecessor:} 15. axb5 axb5 16. Ng3 Qd7 17. d4 dxe4 18. Nxe5 Nxe5 19. dxe5 Qxd1 20. Rxd1 Nd7 21. Nxe4 Nxe5 {½-½ Matikozian,A (2424)-Amanov,Z (2360) Los Angeles Century West op 2013 (4)}) 15... Qxd5 {[%emt 0:02:12]} 16. Be3 {[%emt 0:05:47]} (16. b4 {keeps more tension.} Rbd8 17. Ng3 Qd6 18. Bd2) 16... Bxe3 {[%emt 0:03:37]} 17. Nxe3 {[%emt 0:02:38]} Qd7 {[%emt 0:00:48]} 18. Qd2 {[%emt 0:06:39]} b4 {[%emt 0:02:57]} 19. cxb4 {[%emt 0:05:51]} Qd6 {[%emt 0:03:39] [#]} 20. b5 $1 {[%emt 0:07:26]} axb5 {[%emt 0:03:39]} 21. axb5 {[%emt 0:02:08]} Nb4 {[%emt 0:00:34]} 22. Rad1 {[%emt 0:07:12]} Red8 {[%emt 0:08:42]} (22... Rxb5 $2 23. Ba4 Qa6 24. Ra1 $18 (24. Bxb5 Qxb5 25. d4 e4 $16)) 23. d4 {[%emt 0:05:31]} e4 {[%emt 0:02:00]} 24. Ne5 {[%emt 0:04:26]} Rxb5 {[%emt 0:00:53]} 25. N3c4 {[%emt 0:03:48]} Bxc4 {[%emt 0:02:38]} 26. Nxc4 {[%emt 0:00:11]} Qc6 {[%emt 0:03:37]} 27. b3 {[%emt 0:12:28]} Qb7 {[%emt 0:01:56]} 28. Bb1 {[%emt 0:01:55]} Rg5 {[%emt 0:10:10][%cal Og5g2] And now ...Rxg2+! would win.} 29. Qf4 {[%emt 0:04:16] [#]} (29. Ne3 $11 {keeps the balance.}) 29... Nbd5 $1 $17 {[%emt 0:01:22][%csl LRb3,LRf4][%cal Bb4d5,Bd5c3,Bc3e2][%mdl 96] Discovered Attack. Excellent horsemanship.} (29... Nd3 $6 30. Bxd3 exd3 31. g3 $11) 30. Bxe4 {[%emt 0:01:34]} (30. Qd2 $17 {was worth a try.}) 30... Qxb3 $19 {[%emt 0:01:04]} 31. Qc1 {[%emt 0:04:34]} (31. Bxd5 Nxd5 32. Qc1) 31... Nxe4 {[%emt 0:00:56] Black has a decisive advantage.} ({Don't do} 31... Qxh3 32. Qxg5 hxg5 33. gxh3 $18) 32. Rxe4 {[%emt 0:00:08] [#]} Nc3 $1 {[%emt 0:00:08]} ({Much less strong is} 32... Qxh3 33. Qxg5 hxg5 34. gxh3 $18) (32... Qf3 33. Rg4 Rxg4 34. hxg4 Qxg4 35. Ne5 $17) 33. Rd3 {[%emt 0:06:26]} Ne2+ {[%emt 0:00:06][%mdl 64] Discovered Attack, Decoy} ({Weaker is} 33... Qxc4 34. Rxc3 Qd5 35. f3 $11) 34. Rxe2 {[%emt 0:00:34]} Qxd3 {[%emt 0:00:05] Weighted Error Value: White=0.25 (precise) /Black=0.05 (flawless)} 0-1

[Event "1000GM Memorial Day NY IM-C 2023"]
[Site "New York"]
[Date "2023.05.27"]
[Round "4.2"]
[White "Mou, Iris"]
[Black "Poliannikov, Danila"]
[Result "1-0"]
[ECO "C48"]
[WhiteElo "2002"]
[BlackElo "2278"]
[Annotator "TA"]
[PlyCount "47"]
[EventDate "2023.05.23"]
[EventType "tourn"]
[EventCountry "USA"]
[SourceTitle "playchess.com"]
[Source "ChessBase"]
[SourceQuality "1"]
[TimeControl "5400+30"]

{[%evp 9,47,15,33,22,31,22,37,42,47,76,192,179,339,325,332,319,336,338,358,374,623,616,607,599,541,290,262,0,0,0,242,242,239,243,914,917,29970,29971,29995,29996]} 1. e4 {[%emt 0:05:43]} e5 {[%emt 0:00:06]} 2. Nf3 {[%emt 0:00:13]} Nc6 {[%emt 0:00:04]} 3. Nc3 {[%emt 0:00:08]} Nf6 {[%emt 0:00:11]} 4. Bb5 {[%emt 0:00:14]} Nd4 {[%emt 0:00:53]} 5. Bc4 {[%emt 0:00:11]} Nxf3+ {[%emt 0:00:38]} 6. gxf3 {[%emt 0:00:08] C48: Four Knights: 4 Bb5, replies other than 4...Bb4.} Bc5 {[%emt 0:06:22]} 7. Rg1 {[%emt 0:00:18]} Nh5 {[%emt 0:04:59] [#]} 8. f4 $146 {[%emt 0:00:22] White is slightly better.} ({Predecessor:} 8. d4 Bxd4 9. Ne2 d5 10. Bxd5 c6 11. Nxd4 cxd5 12. Rg5 exd4 13. Rxd5 Qb6 14. Rxh5 Be6 15. b3 O-O 16. Bb2 g6 17. Bxd4 Qc7 18. Bf6 {1-0 Bacrot,E (2709)-Sargissian,G (2668) Antwerp InventiChess 2009 (1)}) 8... Qh4 {[%emt 0:11:58][%csl Gc5][%cal Rh4f2]} 9. Qf3 {[%emt 0:00:34]} Qxf4 {[%emt 0:07:12]} (9... exf4 $16 {was called for.} 10. Nd5 Bd6) 10. Qg2 $1 $18 {[%emt 0:00:22][%cal Od2d4] d4! is the strong threat.} (10. Qxf4 Nxf4 11. Rxg7 d6 $11) 10... Qf6 $2 {[%emt 0:08:25]} (10... Qh4) 11. Nd5 {[%emt 0:14:25][%csl LRc7,LRf6]} Qd6 {[%emt 0:01:21] [#]} 12. d4 $1 {[%emt 0:04:31][%mdl 512]} Bxd4 {[%emt 0:02:43]} 13. Qf3 {[%emt 0:05:26]} Nf4 {[%emt 0:03:25][%cal Ob7b5]} 14. c3 {[%emt 0:04:02]} (14. Rxg7 c6 $16) 14... Bb6 $2 {[%emt 0:02:48]} (14... c6) 15. Rxg7 {[%emt 0:02:49]} Rf8 {[%emt 0:01:55]} 16. Bxf4 {[%emt 0:06:26]} (16. Rxh7 Nxd5 17. Bxd5 Qg6 $18) 16... exf4 {[%emt 0:00:08] Black is weak on the light squares} 17. Qh5 {[%emt 0:01:25] And now 0-0-0 would win.} (17. Qxf4 Qxf4 18. Nxf4 c6 $16) (17. Nxf4 c6 $16) 17... c6 {[%emt 0:05:37] [#]} 18. O-O-O $2 {[%emt 0:11:31][%cal Ba1d1,Bd1d5,Bd5f5,Bf5f7][%mdl 32]} cxd5 $11 {[%emt 0:01:02]} 19. Rxd5 {[%emt 0:01:11]} Qf6 {[%emt 0:10:18] [#]} (19... Qc6 $1 $11 {and Black has nothing to worry.}) 20. Rxf7 $3 $18 {[%emt 0:10:20][%mdl 512]} Rxf7 {[%emt 0:00:29]} 21. Rf5 {[%emt 0:00:31]} Qg7 {[%emt 0:15:18]} (21... Qc6 22. Bd5 {[%mdl 64] Pin} (22. Bxf7+ Kd8 $16) 22... Qd6) 22. Rxf7 {[%emt 0:04:37]} Qg1+ {[%emt 0:03:04]} 23. Kc2 {[%emt 0:00:45]} Kd8 {[%emt 0:01:10]} 24. Qh4+ {[%emt 0:00:23] Excellently played by Mou!   Weighted Error Value: White=0.37/Black=0.79} 1-0

[Event "1000GM Memorial Day NY IM-C 2023"]
[Site "New York"]
[Date "2023.05.27"]
[Round "4.3"]
[White "Moor, Nathaniel Philip"]
[Black "Paragua, Mark"]
[Result "0-1"]
[ECO "A45"]
[WhiteElo "2185"]
[BlackElo "2442"]
[Annotator "TA"]
[PlyCount "74"]
[EventDate "2023.05.23"]
[EventType "tourn"]
[EventCountry "USA"]
[SourceTitle "playchess.com"]
[Source "ChessBase"]
[SourceQuality "1"]
[TimeControl "5400+30"]

{[%evp 9,74,-7,0,0,-9,-3,0,22,15,5,0,0,0,0,0,0,24,41,37,6,13,13,39,-12,-12,-12,-8,-2,0,-31,-26,-30,0,0,0,0,0,-17,-8,-26,-17,-62,-59,-78,-64,-123,-95,-91,-95,-206,-206,-246,-240,-251,-251,-216,-222,-279,-279,-443,-453,-1954,-2015,-1866,-1856,-1149,-1132]} 1. d4 {[%emt 0:00:01]} Nf6 {[%emt 0:03:29]} 2. Bf4 {[%emt 0:00:10]} g6 {[%emt 0:00:14]} 3. Nc3 {[%emt 0:00:07]} d5 {[%emt 0:00:09]} 4. e3 {[%emt 0:00:07]} Bg7 {[%emt 0:00:22]} 5. h4 {[%emt 0:00:08]} h5 {[%emt 0:00:27]} 6. Nf3 {[%emt 0:00:11] A45: Trompowsky Attack.} (6. Nb5 $5 Na6 $8 7. Nc3 $11) 6... O-O {[%emt 0:01:05][%cal Oc7c5]} 7. Ne5 {[%emt 0:00:12] [#]} c5 $1 {[%emt 0:00:56]} 8. Qd2 {[%emt 0:01:28] The position is equal.} Nc6 {[%emt 0:01:43]} 9. f3 {[%emt 0:08:22]} cxd4 {[%emt 0:05:07]} 10. exd4 {[%emt 0:00:08]} Nd7 {[%emt 0:00:16][%cal Rd7e5]} (10... Bf5 $5 {[%cal Rf6d7]}) 11. Nxd5 {[%emt 0:07:17]} Ndxe5 {[%emt 0:01:37]} 12. dxe5 {[%emt 0:00:10]} Be6 {[%emt 0:01:00]} (12... Bf5 $5 {[%cal Rf5c2]}) 13. O-O-O {[%emt 0:07:32]} Rc8 {[%emt 0:00:36] [#]} 14. Bb5 $146 {[%emt 0:04:52]} ({Predecessor:} 14. Kb1 Nxe5 15. Bxe5 Bxe5 16. g4 hxg4 17. h5 Qxd5 18. Qxd5 Bxd5 19. Rxd5 Rfd8 20. Bc4 Rxd5 21. Bxd5 {0-1 Nathan,N (2071)-Mikaelyan,A (2509) Los Angeles 1000GM Spring op 2023 (1)}) 14... Nxe5 {[%emt 0:03:34]} 15. Rhe1 {[%emt 0:01:44][%cal Bh1e1,Be1e5,Be5g5][%mdl 32]} Bxd5 {[%emt 0:07:07]} (15... Nc4 $2 16. Bxc4 Rxc4 17. Nf6+ Bxf6 18. Qxd8 Rxd8 19. Rxd8+ Kg7 20. Bg5 $18) 16. Bxe5 {[%emt 0:07:58]} ({White should try} 16. Qxd5 $14 Qxd5 17. Rxd5) 16... Bxe5 $11 {[%emt 0:00:08]} 17. Rxe5 {[%emt 0:00:13]} e6 {[%emt 0:00:08]} 18. Bd3 {[%emt 0:16:00]} Qf6 {[%emt 0:04:53]} (18... Bxa2 19. Qh6 Qf6 20. Rxh5 $14) (18... Qxh4 {is more complex.} 19. Qh6 Qf6 20. Rxh5 Qg7) 19. Rg5 {[%emt 0:02:20]} (19. Qg5 $5 {[%cal Rg5f6]} Kg7 20. Be4 $11) 19... Rfd8 {[%emt 0:00:19][%cal Bf8d8,Bd8d4,Bd4h4,Bh4h3][%mdl 32]} (19... Bxa2 $6 20. Ra5 Bd5 21. Qg5 Qxg5+ 22. hxg5 $17) 20. Qe3 {[%emt 0:14:04]} Bxa2 {[%emt 0:08:25]} (20... Bc4 {simplifies} 21. g3 Bxd3 22. Rxd3 Rxd3 23. Qxd3 Rd8) 21. g4 $1 {[%emt 0:03:06]} Qd4 $36 {[%emt 0:15:13][%mdl 2048] Black has some pressure.} 22. Qxd4 {[%emt 0:07:30]} Rxd4 {[%emt 0:00:06]} 23. gxh5 {[%emt 0:00:05]} Rxh4 {[%emt 0:00:30]} 24. hxg6 {[%emt 0:00:26]} (24. Ra5 $5 {[%cal Ra5a2]} Bd5 25. hxg6 $11) 24... f5 {[%emt 0:00:09] Inhibits Be4.} 25. Kd2 {[%emt 0:05:58]} Bd5 {[%emt 0:02:09]} 26. Ke3 {[%emt 0:00:35][%cal Od3f5]} Rh3 {[%emt 0:03:31]} 27. Kd4 {[%emt 0:07:56]} (27. Rf1 $15) 27... Kg7 {[%emt 0:04:29]} ({Weaker is} 27... Rxf3 28. Rdg1 $15) 28. f4 {[%emt 0:01:21]} Rd8 {[%emt 0:00:15] And now ...Bf3+ would win. Black is more active.} 29. Rdg1 {[%emt 0:02:06]} (29. Re1 $17) 29... Be4+ $19 {[%emt 0:03:46]} 30. Kc4 {[%emt 0:01:14]} (30. Ke5 {gets mated.} Re3) 30... Bxd3+ {[%emt 0:02:46]} 31. cxd3 {[%emt 0:00:01]} Rdxd3 {[%emt 0:31:31][%mdl 4096] Endgame KRR-KRR} (31... Rhxd3 $2 {too greedy.} 32. Rh5 R8d4+ 33. Kb5 Rxf4 34. Rh7+ Kg8 35. b4 $19) 32. Re1 {[%emt 0:00:54] [#]} Rd6 {[%emt 0:00:00]} 33. Ra1 {[%emt 0:01:06]} a6 {[%emt 0:00:00]} 34. Kc5 {[%emt 0:01:24]} (34. Ra3 {was worth a try.} Rh2 35. Ra1) 34... Rhd3 {[%emt 0:00:00] ( -> ...b6+). Black is clearly winning.} 35. Kc4 {[%emt 0:00:41]} (35. Kb4 $142 R6d4+ 36. Kc5 Rxf4 37. Rag1) 35... b6 {[%emt 0:00:00][%csl Gd3][%cal Rd6d4]} 36. Rxa6 {[%emt 0:00:25] [#]} b5+ $1 {[%emt 0:00:00][%mdl 576] Discovered Attack, Decoy} 37. Kxb5 {[%emt 0:00:26]} (37. Kb4 Rxa6) 37... R3d5+ {[%emt 0:00:00][%mdl 64] Deflection.   Weighted Error Value: White=0.39/Black=0.04 (flawless)} 0-1